bitfinex-derivatives/quotes_ETHF0:USTF0_20240817
["timestamp","ask_amount","ask_price","bid_price","bid_amount"]
[1723870047293,3.26957882,2600.2,2600.1,0.00293719]
[1723870051907,3.03033,2600.2,2600.1,0.00293719]
[1723870052101,3.26958659,2600.2,2600.1,0.00293719]
[1723870052297,3.03033,2600.2,2600.1,0.00293719]
[1723870052607,3.26958659,2600.2,2600.1,0.00293719]
[1723870060907,2.16158659,2600.2,2600.1,0.00293719]
[1723870061107,3.26958061,2600.2,2600.1,0.00293719]
[1723870062018,8.9872391,2600.2,2600.1,0.00293719]
[1723870065806,8.98726572,2600.2,2600.1,0.00293719]
[1723870066009,12.83286572,2600.2,2600.1,0.00293719]
[1723870066215,12.59358849,2600.2,2600.1,0.00293719]
[1723870066403,12.83286611,2600.2,2600.1,0.00293719]
[1723870067509,5.95693611,2600.2,2600.1,0.00293719]
[1723870067815,3.26960762,2600.2,2600.1,0.00293719]
[1723870068123,6.29576313,2600.2,2600.1,0.00293719]
[1723870068818,6.29601594,2600.2,2600.1,0.00293719]
[1723870069514,3.26960762,2600.2,2600.1,0.00293719]
[1723870069922,0.23927762,2600.2,2600.1,3.84853719]
[1723870070117,0.23927762,2600.2,2600.1,4.19723719]
[1723870070321,8.51849832,2600.3,2600.1,4.56913719]
[1723870070626,0.23925369,2600.2,2600.1,0.72353719]
[1723870071015,2.76093305,2600.2,2600.1,4.56913719]
[1723870071213,4.68326305,2600.2,2600.1,4.56913719]
[1723870071520,4.68326305,2600.2,2600.1,4.19723719]
[1723870071521,2.16158369,2600.2,2600.1,4.19723719]
[1723870073309,2.76074099,2600.2,2600.1,4.19723719]
[1723870073714,4.68307099,2600.2,2600.1,4.54563719]
[1723870074415,4.68304255,2600.2,2600.1,4.54563719]
[1723870074816,2.16158369,2600.2,2600.1,4.54563719]
[1723870075417,2.16158369,2600.2,2600.1,4.19723719]
[1723870075611,3.26958369,2600.2,2600.1,3.84853719]
[1723870076121,3.03033,2600.2,2600.1,0.00293719]
[1723870076425,6.29555648,2600.2,2600.1,0.00293719]
[1723870077528,3.269586,2600.2,2600.1,0.00293719]
[1723870078419,6.29555648,2600.2,2600.1,0.00293719]
[1723870078726,3.269586,2600.2,2600.1,0.00293719]
[1723870079131,6.29555648,2600.2,2600.1,0.00293719]
[1723870080325,3.269586,2600.2,2600.1,0.00293719]
[1723870081329,3.26958833,2600.2,2600.1,0.00293719]
[1723870082327,3.03033,2600.2,2600.1,0.00293719]
[1723870082529,3.26959175,2600.2,2600.1,0.00293719]
[1723870084528,3.03033,2600.2,2600.1,0.00293719]
[1723870084729,3.2695928,2600.2,2600.1,0.00293719]
[1723870084935,5.1919228,2600.2,2600.1,0.00293719]
[1723870086042,8.21789328,2600.2,2600.1,0.00293719]
[1723870086237,12.06349328,2600.2,2600.1,0.00293719]
[1723870089039,9.0375228,2600.2,2600.1,0.00293719]
[1723870089841,12.06349328,2600.2,2600.1,0.00293719]
[1723870090640,8.21789328,2600.2,2600.1,0.00293719]
[1723870090835,12.06349328,2600.2,2600.1,0.00293719]
[1723870091443,8.21789328,2600.2,2600.1,0.00293719]
[1723870091741,8.21790328,2600.2,2600.1,0.00293719]
[1723870091946,7.97863048,2600.2,2600.1,0.00293719]
[1723870092244,8.21789986,2600.2,2600.1,0.00293719]
[1723870093438,8.21790086,2600.2,2600.1,0.00293719]
[1723870097942,8.21790086,2600.2,2600.0,0.00577245]
[1723870098250,1.92255,2599.9,2599.7,1.4565]
[1723870098435,2.38612634,2599.8,2599.7,1.4565]
[1723870098641,4.30875634,2599.8,2599.7,1.4565]
[1723870098841,4.30875634,2599.8,2599.7,5.3029]
[1723870099144,4.30875634,2599.8,2599.7,5.30583072]
[1723870099741,4.30875634,2599.8,2599.7,1.45943072]
[1723870100048,4.30875634,2599.8,2599.7,5.30583072]
[1723870100242,4.30875634,2599.8,2599.7,0.35143072]
[1723870100542,5.92111292,2599.8,2599.7,0.00293072]
[1723870100949,6.16041812,2599.8,2599.7,0.00293072]
[1723870101248,5.92111292,2599.8,2599.7,0.00293072]
[1723870101449,7.84374292,2599.8,2599.7,0.00293072]
[1723870101743,5.5612616,2599.8,2599.7,0.00293072]
[1723870102535,3.6386316,2599.8,2599.7,0.00293072]
[1723870102737,2.5306316,2599.8,2599.7,0.00293072]
[1723870102944,2.29133,2599.8,2599.7,0.00293072]
[1723870104852,4.81263491,2599.8,2599.7,0.00293072]
[1723870106344,2.29133,2599.8,2599.7,0.00293072]
[1723870106950,4.81263491,2599.8,2599.7,0.00293072]
[1723870107154,2.29133,2599.8,2599.7,0.00293072]
[1723870110154,4.81263491,2599.8,2599.7,0.00293072]
[1723870110853,2.29133,2599.8,2599.7,0.00293072]
[1723870111056,4.81263491,2599.8,2599.7,0.00293072]
[1723870111255,2.29133,2599.8,2599.7,0.00293072]
[1723870111453,4.81263491,2599.8,2599.7,0.00293072]
[1723870111652,2.29133,2599.8,2599.7,0.00293072]
[1723870112751,4.81263491,2599.8,2599.7,0.00293072]
[1723870113854,5.05193629,2599.8,2599.7,0.00293072]
[1723870114253,3.63863138,2599.8,2599.7,0.00293072]
[1723870114447,6.15964296,2599.8,2599.7,0.00293072]
[1723870114856,3.63863138,2599.8,2599.7,0.00293072]
[1723870115457,6.1594867,2599.8,2599.7,0.00293072]
[1723870115959,6.15941978,2599.8,2599.7,0.00293072]
[1723870116259,5.92010912,2599.8,2599.7,0.00293072]
[1723870118261,6.15941117,2599.8,2599.7,0.00293072]
[1723870119164,6.15941088,2599.8,2599.7,0.00293072]
[1723870121264,6.15939961,2599.8,2599.7,0.00293072]
[1723870121771,5.92010912,2599.8,2599.7,0.00293072]
[1723870122061,6.15941172,2599.8,2599.7,0.00293072]
[1723870122356,6.15989533,2599.8,2599.7,0.00293072]
[1723870126263,6.15989342,2599.8,2599.7,0.00293072]
[1723870126459,5.92059273,2599.8,2599.7,0.00293072]
[1723870126666,2.52126273,2599.8,2599.7,1.92563072]
[1723870126967,4.44384273,2599.9,2599.7,1.92563072]
[1723870127368,4.44384273,2599.9,2599.8,0.359]
[1723870127663,4.68312008,2599.9,2599.8,0.359]
[1723870129159,5.79112008,2599.9,2599.7,0.00293072]
[1723870129359,5.55184273,2599.9,2599.7,0.00293072]
[1723870129859,5.55186273,2599.9,2599.7,0.00293072]
[1723870130164,2.52126273,2599.8,2599.7,0.00293072]
[1723870130367,2.52126273,2599.8,2599.7,1.92563072]
[1723870130561,5.55186273,2599.9,2599.7,0.00293072]
[1723870130761,5.55186273,2599.9,2599.7,1.92562072]
[1723870132762,5.55186273,2599.9,2599.8,1.92263]
[1723870132763,3.62926273,2599.9,2599.8,1.92263]
[1723870132963,3.86853351,2599.9,2599.8,1.92263]
[1723870133270,2.76053351,2599.9,2599.8,5.76903]
[1723870133960,2.52126273,2599.9,2599.8,5.76903]
[1723870134482,2.52703518,2600.0,2599.9,1.92255]
[1723870134766,3.02597048,2600.3,2600.0,1.92248]
[1723870134767,1.00832803,2600.1,2600.0,1.92248]
[1723870134973,1.00832803,2600.2,2600.0,12.46426773]
[1723870135161,1.00832803,2600.2,2600.1,5.76900246]
[1723870135367,1.00832803,2600.2,2600.1,7.27719506]
[1723870135761,1.00832803,2600.2,2600.1,8.69695826]
[1723870135964,1.00832803,2600.2,2600.1,7.69127131]
[1723870136164,1.00832803,2600.2,2600.1,9.19946391]
[1723870136358,1.51259399,2600.3,2600.2,1.92233]
[1723870136566,1.51259399,2600.3,2600.2,5.76793]
[1723870137073,1.00730381,2600.3,2600.2,5.76793]
[1723870139371,1.39368955,2600.4,2600.3,1.92226]
[1723870139562,1.39368955,2600.4,2600.3,2.26786]
[1723870139764,1.39368955,2600.4,2600.3,6.11346]
[1723870140374,1.39368955,2600.4,2600.3,2.26786]
[1723870140768,1.01658955,2600.4,2600.3,6.11346]
[1723870140973,0.01010592,2600.4,2600.3,19.3694593]
[1723870141169,0.01010592,2600.4,2600.3,19.7437593]
[1723870141368,0.01010592,2600.4,2600.3,21.6659891]
[1723870141770,0.01010592,2600.4,2600.3,19.7437593]
[1723870142371,0.01010592,2600.4,2600.3,18.73868342]
[1723870143268,0.3752,2600.8,2600.3,17.8214993]
[1723870143475,0.3752,2600.8,2600.7,1.92196]
[1723870143875,0.3752,2600.8,2600.7,6.50256]
[1723870144076,4.57868363,2600.9,2600.7,6.50252]
[1723870144275,4.57868363,2600.9,2600.7,4.2124]
[1723870144276,7.98213238,2600.9,2600.7,4.2124]
[1723870145668,4.77433238,2600.9,2600.7,0.3676]
[1723870145867,4.77433238,2600.9,2600.7,4.2124]
[1723870147083,3.76784875,2600.9,2600.7,4.2124]
[1723870147381,3.76784875,2600.9,2600.7,0.3676]
[1723870147382,4.77437238,2600.9,2600.7,0.3676]
[1723870147580,3.76788875,2600.9,2600.7,0.3676]
[1723870148078,1.92189,2600.8,2600.4,0.3567]
[1723870148283,3.76787875,2600.9,2600.5,1.4864]
[1723870148579,3.76787875,2600.9,2600.6,3.02999]
[1723870148786,3.76787875,2600.9,2600.6,1.92199]
[1723870148982,1.9219,2600.8,2600.6,1.92199]
[1723870149178,1.108,2600.7,2600.3,3.2078]
[1723870149373,1.74452238,2600.9,2600.3,1.92221]
[1723870149374,3.39689,2600.6,2600.3,1.92221]
[1723870149576,2.29522,2600.5,2600.3,1.92221]
[1723870150183,0.3731,2600.5,2600.3,1.92221]
[1723870150484,1.108,2600.4,2600.1,1.108]
[1723870150670,3.03023,2600.4,2600.1,3.0304]
[1723870151087,1.92226,2600.3,2600.1,3.0304]
[1723870151272,1.108,2600.4,2600.1,1.108]
[1723870151273,0.3596,2600.2,2600.1,1.108]
[1723870151485,0.7075,2600.2,2600.1,3.03041]
[1723870151676,0.7075,2600.2,2600.1,6.87601]
[1723870151878,0.7075,2600.2,2600.1,5.76801]
[1723870152077,0.7075,2600.2,2600.1,6.87601]
[1723870152781,0.7075,2600.2,2600.1,3.8456]
[1723870152987,2.62983,2600.2,2600.0,4.3158]
[1723870153478,2.62983,2600.2,2600.0,3.2078]
[1723870153673,2.62983,2600.2,2600.0,4.3158]
[1723870154481,1.92241,2600.1,2600.0,1.108]
[1723870154878,1.92241,2600.1,2599.8,7.68331]
[1723870155080,0.3675,2600.0,2599.9,1.108]
[1723870155590,0.3675,2600.0,2599.9,4.9544]
[1723870157489,0.3675,2600.0,2599.9,1.108]
[1723870159388,2.28998,2600.0,2599.8,6.491]
[1723870160088,2.28998,2600.0,2599.8,1.108]
[1723870160489,2.28998,2600.0,2599.7,5.13340072]
[1723870160685,2.28481,2599.9,2599.7,4.31873072]
[1723870161084,0.3622,2599.9,2599.7,6.24140072]
[1723870161291,0.3593,2599.8,2599.7,6.24140072]
[1723870163792,0.3622,2599.9,2599.8,1.92263]
[1723870163986,0.3622,2599.9,2599.8,3.40273]
[1723870164186,0.3622,2599.9,2599.8,7.24913]
[1723870165988,0.3622,2599.9,2599.8,4.2185]
[1723870166188,0.3622,2599.9,2599.8,5.3265]
[1723870166798,0.3622,2599.9,2599.8,7.24913]
[1723870167184,0.3622,2599.9,2599.8,3.40273]
[1723870167390,0.3622,2599.9,2599.8,7.24913]
[1723870167591,0.3622,2599.9,2599.8,1.4801]
[1723870167896,0.3622,2599.9,2599.8,5.3265]
[1723870168698,2.28475,2599.9,2599.8,4.9544]
[1723870170200,2.28475,2599.9,2599.8,1.108]
[1723870170500,2.28475,2599.9,2599.8,4.9544]
[1723870171004,2.28475,2599.9,2599.8,1.108]
[1723870171204,2.28475,2599.9,2599.8,4.9544]
[1723870171703,2.28475,2599.9,2599.8,1.108]
[1723870172289,2.28475,2599.9,2599.7,1.11093072]
[1723870173194,0.3503,2599.8,2599.7,1.11093072]
[1723870177395,0.3503,2599.8,2599.7,0.00293072]
[1723870181106,0.3503,2599.8,2599.7,3.03363072]
[1723870181703,3.29128363,2599.9,2599.7,3.03363072]
[1723870181704,2.92908363,2599.9,2599.7,3.03363072]
[1723870182006,1.00648363,2599.9,2599.7,3.03363072]
[1723870182215,1.00648363,2599.9,2599.8,0.3784]
[1723870182597,3.29651363,2600.0,2599.8,0.3784]
[1723870183206,1.92255,2599.9,2599.8,0.3784]
[1723870184203,3.29650363,2600.0,2599.8,0.3784]
[1723870184405,1.00648363,2599.9,2599.8,0.3784]
[1723870185112,2.92903363,2599.9,2599.8,0.7401]
[1723870189617,2.92903363,2599.9,2599.8,0.3784]
[1723870191513,1.92255,2599.9,2599.8,0.3784]
[1723870192017,2.92897348,2599.9,2599.8,0.3784]
[1723870192415,3.80259399,2600.0,2599.8,2.30103]
[1723870192722,1.00669324,2599.9,2599.8,2.30103]
[1723870193412,1.51259399,2599.9,2599.8,0.3784]
[1723870193916,3.43514399,2599.9,2599.8,0.3784]
[1723870194519,1.92255,2599.9,2599.8,0.3784]
[1723870195414,3.93946457,2599.9,2599.8,0.3784]
[1723870196819,3.93946457,2599.9,2599.7,3.03358072]
[1723870197023,0.3533,2599.8,2599.7,3.03358072]
[1723870197318,2.37021457,2599.8,2599.7,3.03358072]
[1723870197521,2.37021457,2599.8,2599.7,6.87998072]
[1723870197718,2.37021457,2599.8,2599.7,7.8850566]
[1723870197923,0.3533,2599.8,2599.7,7.8850566]
[1723870198422,2.37021457,2599.8,2599.7,7.8850566]
[1723870200526,2.37021457,2599.8,2599.7,4.0386566]
[1723870202622,2.01691457,2599.8,2599.7,9.8078993]
[1723870205323,1.00877902,2600.0,2599.8,1.92263]
[1723870205521,1.5131984,2600.2,2599.9,8.24880472]
[1723870205724,1.5131984,2600.2,2600.1,4.538001]
[1723870205926,1.5131984,2600.2,2600.1,10.3064437]
[1723870206431,1.5131984,2600.2,2600.1,9.80349962]
[1723870207433,1.8653984,2600.3,2600.2,1.92233]
[1723870207638,1.8653984,2600.3,2600.2,5.13013]
[1723870208729,3.78584805,2600.3,2600.2,3.2078]
[1723870208930,4.15585102,2600.3,2600.2,3.2078]
[1723870209129,2.64446,2600.3,2600.2,3.2078]
[1723870210432,4.15569974,2600.3,2600.2,3.2078]
[1723870211032,7.59806,2600.3,2599.9,1.00464692]
[1723870211233,2.92995176,2600.0,2599.8,5.32044692]
[1723870211421,1.74854727,2599.9,2599.8,5.32044692]
[1723870211626,2.09854727,2599.9,2599.8,6.23843]
[1723870213521,2.09854727,2599.9,2599.8,4.3158]
[1723870213925,4.02109727,2599.9,2599.8,4.3158]
[1723870215738,4.02109727,2599.9,2599.8,1.108]
[1723870215942,2.09854727,2599.9,2599.8,1.108]
[1723870216732,2.09854727,2599.9,2599.8,3.03063]
[1723870216931,2.09854727,2599.9,2599.8,4.03527692]
[1723870217430,2.09854727,2599.9,2599.8,3.03063]
[1723870220038,1.73644727,2599.9,2599.8,3.03063]
[1723870220234,1.00744727,2600.0,2599.8,12.88167692]
[1723870220424,1.00744727,2600.1,2600.0,1.92248]
[1723870220624,1.00744727,2600.1,2600.0,5.13028]
[1723870220823,1.00744727,2600.1,2600.0,9.34048]
[1723870223534,1.00744727,2600.1,2600.0,6.13268]
[1723870223735,1.00744727,2600.1,2600.0,9.34048]
[1723870224833,1.51116264,2600.1,2600.0,9.34048]
[1723870225038,1.51116264,2600.1,2600.0,10.44848]
[1723870226040,1.00717034,2600.1,2600.0,10.44848]
[1723870226548,1.36567034,2600.1,2600.0,10.44848]
[1723870227141,0.3585,2600.1,2600.0,10.44848]
[1723870227830,0.3585,2600.1,2600.0,7.24068]
[1723870228037,1.86966264,2600.1,2600.0,8.526]
[1723870229044,1.86966264,2600.1,2600.0,10.44848]
[1723870229439,3.79207264,2600.1,2600.0,7.418]
[1723870229635,1.86966264,2600.1,2600.0,8.526]
[1723870231939,1.00729195,2600.1,2600.0,10.44848]
[1723870233838,1.00729195,2600.1,2600.0,11.45243935]
[1723870234145,1.00729195,2600.1,2600.0,10.44848]
[1723870234647,3.43349264,2600.2,2600.0,10.44848]
[1723870234843,1.51116264,2600.2,2600.0,4.6796]
[1723870235145,3.43357264,2600.1,2600.0,4.3158]
[1723870235639,3.43357264,2600.1,2600.0,8.1622]
[1723870235841,3.80547264,2600.1,2600.0,8.1622]
[1723870236233,1.88306264,2600.1,2600.0,8.1622]
[1723870236431,3.80547264,2600.1,2600.0,8.1622]
[1723870237142,1.88306264,2600.1,2600.0,8.1622]
[1723870237547,1.88306264,2600.1,2600.0,4.3158]
[1723870238140,1.88306264,2600.1,2600.0,1.108]
[1723870238537,3.80550264,2600.1,2599.9,1.9225]
[1723870238743,1.86236264,2600.0,2599.9,5.1303]
[1723870238948,1.86236264,2600.0,2599.9,6.2383]
[1723870239143,2.21696264,2600.0,2599.9,14.38943176]
[1723870239843,0.7058,2600.0,2599.9,14.38943176]
[1723870240447,2.21696264,2600.0,2599.9,14.38943176]
[1723870240842,2.21696264,2600.0,2599.9,11.18163176]
[1723870241048,1.7133391,2600.0,2599.9,14.38943176]
[1723870241243,1.0075391,2600.0,2599.9,15.39339111]
[1723870241445,1.0075391,2600.0,2599.9,15.75279111]
[1723870242053,1.0075391,2600.0,2599.9,17.67538224]
[1723870243540,1.0075391,2600.0,2599.9,16.67138876]
[1723870244551,1.0075391,2600.0,2599.9,15.75342194]
[1723870245443,1.0075391,2600.0,2599.9,17.67602906]
[1723870246039,1.0075391,2600.0,2599.9,14.46822906]
[1723870246249,1.0075391,2600.0,2599.9,17.67602906]
[1723870246748,1.0075391,2600.0,2599.9,16.67143888]
[1723870247052,1.0075391,2600.1,2600.0,1.92248]
[1723870247346,1.0075391,2600.2,2600.1,1.92241]
[1723870247553,1.0075391,2600.2,2600.1,10.30606327]
[1723870247754,1.0075391,2600.2,2600.1,14.74708408]
[1723870247961,1.0075391,2600.2,2600.1,14.74688119]
[1723870248454,1.0075391,2600.2,2600.1,14.74608119]
[1723870249645,1.51116264,2600.2,2600.1,12.32153676]
[1723870249848,2.23376264,2600.2,2600.1,12.32153676]
[1723870250451,2.23376264,2600.2,2600.1,14.24402091]
[1723870250646,2.23376264,2600.2,2600.1,12.32153676]
[1723870251158,2.23376264,2600.2,2600.1,15.52933676]
[1723870252559,2.23376264,2600.2,2600.1,9.76132676]
[1723870252762,2.23376264,2600.2,2600.1,5.32030595]
[1723870253654,2.23376264,2600.2,2600.1,7.24271595]
[1723870259948,2.23376264,2600.2,2600.1,4.03491595]
[1723870263570,2.23376264,2600.2,2600.1,5.95745987]
[1723870263761,2.23376264,2600.2,2600.1,4.03491595]
[1723870264069,2.23376264,2600.2,2600.1,5.95746473]
[1723870264659,2.23376264,2600.2,2600.1,5.95746417]
[1723870266557,2.64493,2600.2,2600.1,1.00450595]
[1723870266754,2.73725327,2600.2,2600.1,1.108]
[1723870266954,2.73725327,2600.2,2600.1,2.11250595]
[1723870267360,2.73725327,2600.2,2600.1,1.108]
[1723870267669,2.73725327,2600.2,2600.0,1.00450595]
[1723870267670,1.9224,2600.1,2600.0,1.00450595]
[1723870267866,1.92263,2599.8,2599.7,1.00743667]
[1723870268170,1.92263,2599.8,2599.7,0.00293072]
[1723870268471,6.47693,2599.8,2599.7,0.00293072]
[1723870268963,8.49332919,2599.8,2599.7,1.11093072]
[1723870269164,4.64692919,2599.8,2599.7,1.11093072]
[1723870269465,4.14253449,2599.8,2599.7,1.11093072]
[1723870269967,2.21990449,2599.8,2599.7,1.11093072]
[1723870270167,2.21990449,2599.8,2599.7,5.96095635]
[1723870270168,1.71583854,2599.8,2599.7,5.96095635]
[1723870270363,1.71583854,2599.8,2599.7,4.03813667]
[1723870270364,0.7079,2599.8,2599.7,4.03813667]
[1723870270567,1.71576495,2599.8,2599.7,4.03813667]
[1723870270765,2.21990449,2599.8,2599.7,4.03813667]
[1723870271366,2.21990449,2599.8,2599.7,2.11543667]
[1723870271578,2.21990449,2599.8,2599.7,1.11093072]
[1723870271768,2.21990449,2599.8,2599.7,3.03363072]
[1723870272059,2.21990449,2599.8,2599.7,4.03813667]
[1723870272260,2.21990449,2599.8,2599.7,3.03363072]
[1723870272670,2.21990449,2599.8,2599.7,1.11093072]
[1723870273673,2.21990449,2599.8,2599.7,3.03363072]
[1723870273881,1.71554411,2599.8,2599.7,3.03363072]
[1723870274771,1.71554411,2599.8,2599.7,6.24143072]
[1723870274972,1.00764411,2599.9,2599.8,1.92263]
[1723870275278,1.00764411,2599.9,2599.8,3.40743]
[1723870276176,1.00764411,2599.9,2599.8,6.61523]
[1723870277467,1.00764411,2599.9,2599.8,3.40743]
[1723870277673,1.51200449,2599.9,2599.7,3.21073072]
[1723870277977,0.3577,2599.8,2599.7,3.21073072]
[1723870278175,1.36523343,2599.8,2599.7,4.31873072]
[1723870282885,1.36523343,2599.8,2599.7,6.24143072]
[1723870283483,1.00753343,2599.9,2599.8,1.92263]
[1723870284191,1.36583343,2599.9,2599.8,1.92263]
[1723870284487,1.00753343,2599.9,2599.8,1.92263]
[1723870285084,1.00753343,2600.1,2599.9,1.92255]
[1723870285390,2.92994343,2600.1,2600.0,0.3529]
[1723870285781,6.77634343,2600.1,2600.0,0.3529]
[1723870286485,2.92994343,2600.1,2600.0,0.3529]
[1723870286689,1.00753343,2600.1,2600.0,0.3529]
[1723870288386,4.15359449,2600.2,2600.0,0.3529]
[1723870288588,1.00714037,2600.1,2600.0,0.3529]
[1723870289094,4.15359449,2600.2,2600.0,0.3529]
[1723870289392,2.92954568,2600.1,2600.0,0.3529]
[1723870290096,6.77594568,2600.1,2600.0,0.3529]
[1723870290489,1.92248,2600.0,2599.8,2.92713341]
[1723870290689,1.92248,2600.0,2599.9,1.108]
[1723870290690,1.87830449,2600.0,2599.9,1.108]
[1723870290898,0.3663,2600.0,2599.9,1.108]
[1723870291294,1.87830449,2600.0,2599.9,1.108]
[1723870291494,1.87830449,2600.0,2599.8,1.92258]
[1723870291692,1.00720978,2599.9,2599.8,1.92258]
[1723870291900,1.00720978,2599.9,2599.8,3.03058]
[1723870292788,1.00720978,2599.9,2599.8,1.92258]
[1723870293098,1.00720978,2599.9,2599.8,3.03058]
[1723870293298,1.00720978,2599.9,2599.8,1.92258]
[1723870293500,1.00720978,2599.9,2599.8,3.03058]
[1723870300096,1.00720978,2599.9,2599.8,4.03513341]
[1723870300302,1.37350978,2600.0,2599.9,1.92255]
[1723870300695,1.37350978,2600.0,2599.8,2.11255341]
[1723870300696,1.51200449,2600.1,2599.8,2.11255341]
[1723870300895,1.00746711,2600.2,2600.0,4.53712615]
[1723870301096,2.01639919,2600.5,2600.3,1.92226]
[1723870301097,1.00746711,2600.4,2600.3,1.92226]
[1723870301302,1.00746711,2600.5,2600.4,1.92218]
[1723870301601,1.00692579,2600.7,2600.6,1.92204]
[1723870301804,1.51200449,2600.8,2600.7,1.92196]
[1723870301805,1.00692579,2600.8,2600.7,1.92196]
[1723870302106,1.00692579,2600.8,2600.7,6.5278334]
[1723870302300,1.51564324,2600.9,2600.8,1.92189]
[1723870302500,1.01013812,2600.9,2600.8,3.02989]
[1723870303408,1.36493812,2600.9,2600.8,3.02989]
[1723870304402,1.36493812,2600.9,2600.8,1.108]
[1723870305405,1.87044324,2600.9,2600.6,5.12981]
[1723870305597,1.00575737,2600.8,2600.7,1.108]
[1723870305996,1.36419612,2600.9,2600.7,3.02991]
[1723870306203,0.35843875,2600.9,2600.7,3.02991]
[1723870306401,1.36419612,2600.9,2600.7,3.02991]
[1723870306608,0.35843875,2600.9,2600.7,3.02991]
[1723870307305,1.36419612,2600.9,2600.7,3.02991]
[1723870308000,0.35843875,2600.9,2600.7,3.02991]
[1723870310002,0.35843875,2600.9,2600.7,1.108]
[1723870310204,3.28606612,2600.9,2600.6,3.2078]
[1723870310408,3.28606612,2600.9,2600.6,4.3158]
[1723870312012,1.92189,2600.8,2600.6,4.3158]
[1723870312213,3.28604612,2600.9,2600.6,4.3158]
[1723870313707,3.28604612,2600.9,2600.6,1.108]
[1723870314013,3.28604612,2600.9,2600.6,4.3158]
[1723870314706,3.28604612,2600.9,2600.7,1.108]
[1723870314907,0.35843875,2600.9,2600.7,1.108]
[1723870315104,0.35843875,2600.9,2600.7,1.8258]
[1723870316612,0.35843875,2600.9,2600.7,3.74776]
[1723870317209,2.28025875,2600.9,2600.7,1.8258]
[1723870319217,2.28025875,2600.9,2600.7,1.4581]
[1723870319420,2.28025875,2600.9,2600.7,1.108]
[1723870319719,1.92189,2600.8,2600.7,1.108]
[1723870319918,2.28028875,2600.9,2600.7,1.108]
[1723870320617,1.92189,2600.8,2600.7,1.108]
[1723870321208,2.28029875,2600.9,2600.7,1.108]
[1723870322017,1.92189,2600.8,2600.7,1.108]
[1723870322416,2.28029875,2600.9,2600.7,1.108]
[1723870322613,0.35843875,2600.9,2600.7,1.108]
[1723870322814,0.35843875,2600.9,2600.7,3.38636]
[1723870323614,0.35843875,2600.9,2600.8,0.3663]
[1723870324213,0.35843875,2600.9,2600.8,2.28819]
[1723870324610,0.00363875,2600.9,2600.8,2.28819]
[1723870330326,0.00363875,2600.9,2600.7,2.27831]
[1723870330512,1.92544875,2600.9,2600.7,1.108]
[1723870331018,0.00363875,2600.9,2600.7,3.02992]
[1723870332322,1.92546875,2600.9,2600.7,3.02992]
[1723870332717,0.3776,2600.8,2600.7,3.02992]
[1723870335619,0.3776,2600.8,2600.7,1.108]
[1723870337222,2.29949,2600.8,2600.7,1.108]
[1723870337427,0.7449,2600.8,2600.7,1.108]
[1723870339817,1.75065737,2600.8,2600.6,1.92202]
[1723870340029,1.75065737,2600.8,2600.7,1.108]
[1723870340628,1.75065737,2600.8,2600.4,0.7273]
[1723870340932,1.00575737,2600.7,2600.6,3.03003]
[1723870341134,1.00575737,2600.7,2600.6,1.108]
[1723870342625,4.17879449,2600.8,2600.6,1.108]
[1723870342830,1.00628341,2600.7,2600.6,1.108]
[1723870343633,1.51200449,2600.7,2600.6,3.03003]
[1723870344423,3.43396449,2600.7,2600.4,0.3515]
[1723870344636,1.0070356,2600.5,2600.4,2.27368]
[1723870344937,1.0070356,2600.6,2600.5,1.92211]
[1723870345122,1.0070356,2600.7,2600.6,1.92203]
[1723870345327,1.0070356,2600.7,2600.6,3.03003]
[1723870345531,1.51200449,2600.7,2600.6,3.03003]
[1723870346034,1.51200449,2600.7,2600.6,1.4532]
[1723870346639,4.68318919,2600.8,2600.6,2.4570214]
[1723870346823,2.76129919,2600.8,2600.6,4.3790414]
[1723870347022,4.68318919,2600.8,2600.6,2.4570214]
[1723870347631,2.01639919,2600.7,2600.6,2.4570214]
[1723870347831,4.68318919,2600.8,2600.6,2.4570214]
[1723870349033,2.76129919,2600.8,2600.7,5.12976]
[1723870349238,2.39399919,2600.8,2600.7,1.92196]
[1723870352934,2.01639919,2600.8,2600.7,1.92196]
[1723870353338,2.74909919,2600.8,2600.6,4.0338114]
[1723870353540,3.93844306,2600.7,2600.6,1.108]
[1723870353837,1.92204,2600.6,2600.5,1.108]
[1723870354047,1.92204,2600.6,2600.2,1.108]
[1723870354048,9.7666462,2600.6,2600.2,1.108]
[1723870354231,1.92226,2600.3,2600.2,1.108]
[1723870354432,3.93843014,2600.3,2600.2,1.108]
[1723870354636,4.67193014,2600.3,2600.2,1.108]
[1723870355040,4.67131539,2600.3,2600.2,1.108]
[1723870355638,2.74905539,2600.3,2600.2,1.108]
[1723870355842,2.24500253,2600.3,2600.2,1.108]
[1723870356043,2.24504362,2600.3,2600.2,6.23813]
[1723870356346,1.74103336,2600.3,2600.2,7.6059514]
[1723870358141,1.74103336,2600.3,2600.2,6.60213]
[1723870358344,1.00753336,2600.3,2600.2,15.52363412]
[1723870358543,1.00753336,2600.4,2600.3,1.92226]
[1723870358747,1.00753336,2600.4,2600.3,3.03026]
[1723870359044,1.00753336,2600.4,2600.3,10.94794272]
[1723870360947,1.00753336,2600.4,2600.3,11.95176412]
[1723870361249,1.00753336,2600.4,2600.3,10.94794272]
[1723870362148,1.00753336,2600.4,2600.3,14.15574272]
[1723870363143,1.00753336,2600.5,2600.4,1.92218]
[1723870363353,1.00753336,2600.5,2600.4,4.0340014]
[1723870363647,1.00753336,2600.5,2600.4,3.03018]
[1723870365654,1.00753336,2600.7,2600.4,12.39516464]
[1723870365854,1.00753336,2600.7,2600.6,6.23784]
[1723870366260,1.00753336,2600.7,2600.6,14.60880256]
[1723870366665,1.00753336,2600.7,2600.6,15.61131953]
[1723870366959,1.00753336,2600.7,2600.6,14.60880256]
[1723870367166,1.00753336,2600.7,2600.6,15.61131953]
[1723870367359,1.00753336,2600.7,2600.6,14.60880256]
[1723870367557,1.00753336,2600.7,2600.6,10.76400256]
[1723870368660,3.30519336,2600.7,2600.5,1.00251697]
[1723870368859,3.30519336,2600.7,2600.4,2.92469697]
[1723870368860,1.36343336,2600.6,2600.4,2.92469697]
[1723870369264,1.36343336,2600.6,2600.5,1.92211]
[1723870369561,0.3559,2600.6,2600.5,7.13945753]
[1723870369872,0.3559,2600.6,2600.5,10.98505753]
[1723870370566,1.36343336,2600.6,2600.5,10.98505753]
[1723870370867,0.3559,2600.6,2600.5,10.98505753]
[1723870371063,1.36343336,2600.6,2600.5,10.98505753]
[1723870371457,1.36343336,2600.6,2600.5,4.21483056]